lending/lending_fUSD_20250621
["ID","MTS","AMOUNT","RATE_DAILY","PERIOD"]
[366873940,1750534235554,-150.9,0.00024623,2]
[366873941,1750534235564,-150.9,0.00024623,2]
[366873942,1750534235574,-150.9,0.00024623,2]
[366873943,1750534235584,-150.9,0.00024624,2]
[366873944,1750534235595,-150.0,0.00024625,2]
[366873945,1750534235606,-331.02775709,0.00024625,2]
[366873946,1750534235615,-311.0,0.0002463,2]
[366873947,1750534235626,-192569.15429418,0.00024633,2]
[366873948,1750534235635,-227.24047163,0.00024633,2]
[366873949,1750534235645,-2206.872397,0.00024633,2]
[366873950,1750534235656,-177060.7486721,0.00024633,2]
[366873951,1750534235666,-2177.2653883,0.00024633,2]
[366873952,1750534235676,-5481.2082945,0.00024633,2]
[366873953,1750534235685,-28263.9289576,0.00024633,2]
[366873954,1750534235695,-150.0,0.00024634,2]
[366873955,1750534235704,-10086.99364628,0.00024634,2]
[366873956,1750534235713,-150.0,0.00024634,2]
[366873957,1750534235723,-574.97324264,0.00024634,2]
[366873958,1750534235733,-150.0,0.00024634,2]
[366873959,1750534235743,-3899.2712366,0.00024634,2]
[366873960,1750534235752,-150.0,0.00024634,2]
[366873961,1750534235761,-12533.15771653,0.00024634,2]
[366873962,1750534235815,-59528.16126692,0.00024634,2]
[366873969,1750534238584,-500.0,0.00023382,2]
[366873970,1750534238594,-478.2320744,0.00023382,2]
[366873971,1750534238607,-155.13375569,0.00023382,2]
[366873972,1750534238618,-500.0,0.00023382,2]
[366873973,1750534238629,-500.0,0.00023382,2]
[366873974,1750534238639,-228.37983395,0.00023382,2]
[366874230,1750534241283,-261.38949587,0.00023382,2]
[366874231,1750534241293,-317.12826794,0.00023382,2]
[366874232,1750534241305,-182.87173206,0.00023382,2]
[366874233,1750534241315,-524.63014817,0.00023382,2]
[366874234,1750534241326,-226.4065412,0.00023382,2]
[366874235,1750534241336,-500.0,0.00023382,2]
[366874236,1750534241346,-500.0,0.00023382,2]
[366874237,1750534241356,-500.0,0.00023382,2]
[366874238,1750534241368,-421.35669921,0.00023382,2]
[366874239,1750534241377,-109.43632939,0.00023382,2]
[366874240,1750534241461,-291.33583164,0.00023382,2]
[366874241,1750534241473,-99.22783897,0.00023382,2]
[366874242,1750534241483,-500.0,0.00023382,2]
[366874243,1750534241493,-83.37739287,0.00023382,2]
[366874253,1750534246572,-356.87726513,0.00023382,2]
[366874254,1750534246582,-155.16420962,0.00024623,2]
[366874255,1750534246592,-142.96357431,0.00024634,2]
[366874256,1750534246602,-150.0,0.00024634,2]
[366874257,1750534246611,-1583.08203868,0.00024634,2]
[366874258,1750534246631,-2189.72001849,0.00024634,2]
[366874259,1750534246643,-1957.50280635,0.00024634,2]
[366874260,1750534246652,-222.34550248,0.00024634,2]
[366874261,1750534246662,-155.16420962,0.0002464,2]
[366874262,1750534246672,-150.9,0.0002464,2]
[366874263,1750534246682,-150.9,0.0002464,2]
[366874264,1750534246692,-150.9,0.0002464,2]
[366874265,1750534246702,-150.9,0.0002464,2]
[366874266,1750534246711,-150.9,0.0002464,2]
[366874267,1750534246721,-150.9,0.0002464,2]
[366874268,1750534246731,-150.9,0.0002464,2]
[366874269,1750534246740,-150.9,0.0002464,2]
[366874270,1750534246749,-150.9,0.0002464,2]
[366874271,1750534246759,-150.9,0.0002464,2]
[366874272,1750534246770,-143.21873369,0.0002464,2]
[366874280,1750534328377,157.21,0.00013699,2]
[366874282,1750535001466,250.0,0.00015,2]
[366874396,1750535431499,-203.0,0.00018134,2]
[366874397,1750535431509,-203.0,0.00019879,4]
[366874398,1750535431519,-172.93,0.00020679,2]
[366874399,1750535431528,-300.49,0.00020708,2]
[366874401,1750535431538,-302.91,0.00020708,2]
[366874402,1750535431547,-303.1,0.00020708,2]
[366874403,1750535431557,-305.2,0.00020721,2]
[366874404,1750535431566,-302.3,0.00020721,2]
[366874405,1750535431575,-303.48,0.00020721,2]
[366874406,1750535431585,-303.63,0.00020738,2]
[366874407,1750535431594,-246.83,0.00020755,2]
[366874408,1750535431604,-250.57,0.00020755,2]
[366874409,1750535431615,-300.41,0.00020759,2]
[366874410,1750535431625,-247.78,0.00020803,2]
[366874411,1750535431635,-249.25,0.00020803,2]
[366874412,1750535431644,-82.0808127,0.00020803,2]
[366874413,1750535431683,-172.5291873,0.00020803,2]
[366874414,1750535431698,-107.68970049,0.00020803,2]
[366874415,1750535431768,-143.40029951,0.00020803,2]
[366874416,1750535431778,-303.75,0.00020808,2]
[366874417,1750535431788,-250.63,0.0002081,2]
[366874418,1750535431798,-303.93,0.00020823,2]
[366874419,1750535431808,-152.97759947,0.00020881,2]
[366874486,1750535437473,-96.78240053,0.00020881,2]
[366874487,1750535437483,-247.29,0.00020881,2]
[366874489,1750535437492,-155.92759947,0.00020895,2]
[366874490,1750535437504,-145.17240053,0.00020895,2]
[366874491,1750535437514,-247.09,0.00020998,2]
[366874492,1750535437523,-305.05,0.00021072,2]
[366874493,1750535437532,-203.0,0.00021623,6]
[366874494,1750535437542,-248.08,0.00022037,2]
[366874495,1750535437553,-245.71,0.00022037,2]
[366874496,1750535437563,-164.51,0.00022178,2]
[366874497,1750535437572,-301.27,0.00022204,2]
[366874498,1750535437582,-500.0,0.00022274,2]
[366874499,1750535437591,-384.34,0.0002229,2]
[366874500,1750535437600,-207.4,0.00022299,2]
[366874501,1750535437611,-151.0,0.00022299,2]
[366874502,1750535437620,-200.0,0.00022319,2]
[366874503,1750535437630,-666.0,0.00022342,2]
[366874504,1750535437639,-250.0,0.00022356,2]
[366874505,1750535437648,-523.97,0.00022361,2]
[366874506,1750535437658,-710.90759947,0.00022416,2]
[366874507,1750535437774,-289.09240053,0.00022416,2]
[366874508,1750535437784,-1852.42,0.00022444,2]
[366874509,1750535437793,-1000.0,0.000229,2]
[366874510,1750535437803,-200.0,0.00023,2]
[366874511,1750535437812,-157.21,0.00023182,2]
[366874512,1750535437821,-252.36,0.00023298,2]
[366874514,1750535437830,-251.23,0.00023298,2]
[366874516,1750535437839,-303.07,0.00023306,2]
[366874518,1750535437848,-203.0,0.00023367,9]
[366874520,1750535437858,-246.32,0.00023392,2]
[366874522,1750535437867,-251.9,0.00023392,2]
[366874523,1750535437876,-304.95,0.00023394,2]
[366874525,1750535437885,-300.0,0.00023397,2]
[366874526,1750535437894,-250.0,0.00023397,2]
[366874527,1750535437904,-473.0,0.00023398,2]
[366874528,1750535437913,-249.3,0.00023401,2]
[366874529,1750535437922,-246.73,0.00023412,2]
[366874530,1750535437931,-245.88,0.00023412,2]
[366874532,1750535437941,-248.42,0.00023412,2]
[366874534,1750535437950,-305.4,0.00023414,2]
[366874536,1750535437959,-300.04,0.00023414,2]
[366874538,1750535437969,-250.0,0.00023416,2]
[366874540,1750535437978,-245.28,0.0002343,2]
[366874542,1750535437988,-247.31,0.0002343,2]
[366874544,1750535437997,-304.66,0.00023442,2]
[366874546,1750535438006,-248.81,0.00023445,2]
[366874548,1750535438015,-473.0,0.0002345,2]
[366874550,1750535438024,-461.95,0.00023562,2]
[366874552,1750535438033,-245.97,0.00023617,2]
[366874554,1750535438043,-253.43,0.00023617,2]
[366874556,1750535438053,-1594.22,0.00023641,2]
[366874558,1750535438062,-215.0738,0.00023668,2]
[366874560,1750535438072,-156.587,0.00023668,2]
[366874562,1750535438081,-798.09,0.00023741,2]
[366874564,1750535438090,-301.93,0.0002379,2]
[366874566,1750535438099,-205.4,0.00023836,2]
[366874568,1750535438108,-1154.68789898,0.00023865,2]
[366874570,1750535438118,-473.0,0.00023932,2]
[366874572,1750535438128,-250.0,0.00023961,2]
[366874574,1750535438137,-1028.34530853,0.00024,5]
[366874576,1750535438146,-168.0,0.00024015,2]
[366874578,1750535438155,-473.0,0.00024086,2]
[366874580,1750535438164,-301.9,0.0002411,2]
[366874582,1750535438173,-893.0,0.000242,2]
[366874584,1750535438182,-376.0,0.000242,2]
[366874586,1750535438191,-962.0,0.000242,2]
[366874588,1750535438200,-1355.48,0.000244,2]
[366874590,1750535438209,-461.95,0.00024521,2]
[366874592,1750535438218,-1000.0,0.00024533,2]
[366874594,1750535438228,-319.253,0.00024533,2]
[366874596,1750535438237,-246.84,0.00024533,2]
[366874598,1750535438246,-287.56584745,0.00024533,2]
[366874600,1750535438256,-175.77575312,0.00024533,2]
[366874602,1750535438265,-287.56584743,0.00024535,2]
[366874604,1750535438273,-287.56584743,0.00024537,2]
[366874606,1750535438282,-287.56584743,0.00024539,2]
[366874608,1750535438290,-175.77575312,0.00024539,2]
[366874610,1750535438300,-287.56584743,0.00024541,2]
[366874612,1750535438308,-287.56584743,0.00024542,2]
[366874614,1750535438318,-287.56584743,0.00024544,2]
[366874649,1750535438624,-175.77575312,0.00024544,2]
[366874651,1750535438633,-287.56584743,0.00024546,2]
[366874653,1750535438643,-287.56584743,0.00024548,2]
[366874655,1750535438652,-211.70806524,0.0002455,2]
[366874657,1750535438661,-287.56584743,0.0002455,2]
[366874659,1750535438670,-24266.04179305,0.0002455,2]
[366874661,1750535438683,-20492.0,0.0002455,2]
[366874665,1750535438711,-976.6118537,0.0002455,2]
[366874669,1750535438745,-1024.5,0.0002455,2]
[366874671,1750535438757,-3425.91230633,0.0002455,2]
[366874714,1750535439762,-935.24999763,0.0002455,2]
[366874715,1750535439876,-28800.0,0.0002455,2]
[366874716,1750535439887,-732.44427922,0.0002455,2]
[366874717,1750535439920,-6563.2958531,0.0002455,2]
[366874718,1750535439930,-281.2668564,0.0002455,2]
[366874719,1750535439940,-157.77064057,0.0002455,2]
[366874720,1750535439949,-175.77575312,0.0002455,2]
[366874721,1750535439958,-6796.8163249,0.0002455,2]
[366874722,1750535439968,-612.92488714,0.0002455,2]
[366874723,1750535439977,-599.79614468,0.0002455,2]
[366874724,1750535439986,-158.21819683,0.0002455,2]
[366874725,1750535439996,-5000.0,0.0002455,2]
[366874726,1750535440005,-518.8536,0.000246,2]
[366874727,1750535440015,-168.0,0.00024607,2]
[366874728,1750535440024,-500.0,0.00024621,2]
[366874729,1750535440033,-250.0,0.00024632,2]
[366874730,1750535440043,-171.97,0.00024632,2]
[366874731,1750535440053,-3778.6923318,0.00024633,2]
[366874732,1750535440063,-19484.8810482,0.00024633,2]
[366874733,1750535440072,-1987.8225637,0.00024633,2]
[366874734,1750535440081,-36421.7798282,0.00024633,2]
[366874735,1750535440091,-2954.2335728,0.00024633,2]
[366874736,1750535440100,-155.16420962,0.0002464,2]
[366874737,1750535440109,-1666.72254,0.0002464,2]
[366874738,1750535440118,-25.11779383,0.0002464,2]
[366874739,1750535440130,-126.15220617,0.0002464,2]
[366874740,1750535440139,-151.27,0.0002464,2]
[366874741,1750535440149,-151.27,0.0002464,2]
[366874742,1750535440160,-151.27,0.0002464,2]
[366874743,1750535440169,-151.27,0.0002464,2]
[366874744,1750535440179,-151.27,0.0002464,2]
[366874745,1750535440188,-151.27,0.0002464,2]
[366874747,1750535440198,-16743.60431123,0.00024642,3]
[366874748,1750535440235,-336.0581857,0.00024642,3]
[366874750,1750535440277,-2555.8892561,0.00024642,3]
[366874751,1750535440288,-1096.2,0.00024642,3]
[366874752,1750535440300,-350362.50749024,0.00024642,3]
[366874801,1750535442771,-201.0,0.00018134,2]
[366874802,1750535442786,-152.56515012,0.0002455,2]
[366874803,1750535442795,-246.43484988,0.00024642,3]
[366874804,1750535442808,-7615.11870215,0.00024642,3]
[366874818,1750535443130,-200.21892603,0.000239,10]
[366874819,1750535443140,-39591.91135678,0.00024642,3]
[366874828,1750535445601,-200.21892599,0.00023956,10]
[366874829,1750535445610,-165.52958124,0.00024011,10]
[366874830,1750535445621,-34.68934475,0.00024011,10]
[366874831,1750535445631,-200.21892599,0.00024067,10]
[366874832,1750535445640,-200.21892599,0.00024122,10]
[366874833,1750535445649,-200.21892599,0.00024178,10]
[366874834,1750535445659,-200.21892599,0.00024233,10]
[366874835,1750535445669,-200.21892599,0.00024289,10]
[366874836,1750535445679,-200.21892599,0.00024344,11]
[366874837,1750535445691,-200.21892599,0.000244,11]
[366874838,1750535445702,-200.21892599,0.00024456,11]
[366874839,1750535445712,-9265.55924733,0.00024642,3]
[366874840,1750535445723,-11595.94666666,0.00024642,3]
[366874841,1750535445753,-2501.87979996,0.00024642,3]
[366874842,1750535445813,-200.21892599,0.00024511,11]
[366874843,1750535445822,-5958.10379401,0.00024642,3]
[366874844,1750535445833,-1805.53806537,0.00024642,3]
[366874845,1750535445845,-2856.17688502,0.00024642,3]
[366874905,1750535840181,-202.17177053,0.00023355,9]
[366874906,1750535840732,-202.17177053,0.00024264,10]
[366874907,1750535840764,-300.0,0.00024699,10]
[366874908,1750535840785,-300.0,0.00024699,10]
[366874909,1750535840806,-97.82822947,0.00024699,10]
[366874910,1750535840968,-202.17177056,0.000229,8]
[366874911,1750535840996,-202.17177053,0.00023809,9]
[366874912,1750535841020,-1000.0,0.000245,5]
[366874913,1750535841044,-1000.0,0.000245,5]
[366874914,1750535841065,-1000.0,0.000245,5]
[366874915,1750535841086,-1000.0,0.000245,4]
[366874916,1750535841106,-1000.0,0.000245,4]
[366874917,1750535841127,-610.65645891,0.000245,4]
[366874918,1750535841165,-689.0,0.000245,9]
[366874919,1750535841215,-389.34354109,0.000245,4]
[366874920,1750535841236,-1000.0,0.000245,6]
[366874921,1750535841256,-1000.0,0.000245,6]
[366874922,1750535841363,-151.0,0.0002465,7]
[366874923,1750535841384,-151.0,0.0002465,7]
[366874924,1750535841403,-151.0,0.0002465,7]
[366874925,1750535841424,-151.0,0.0002465,7]
[366874926,1750535841444,-151.0,0.0002465,7]
[366874927,1750535841464,-151.981508,0.0002465,7]
[366874928,1750535841485,-109.66409085,0.0002465,7]
[366874930,1750535904455,157.68,0.00013699,2]
[366874931,1750535905267,-300.0,0.00020773,2]
[366874932,1750535905293,-251.42,0.00020774,2]
[366874933,1750535905317,-302.13,0.00020774,2]
[366874934,1750535905342,-251.47,0.00020774,2]
[366874935,1750535905366,-305.94,0.00020774,2]
[366874936,1750535905392,-254.05,0.00020774,2]
[366874937,1750535905416,-248.31,0.00020774,2]
[366874938,1750535905440,-247.3,0.00020774,2]
[366874939,1750535905465,-304.8,0.00020774,2]
[366874940,1750535905490,-254.52,0.00020775,2]
[366874941,1750535905513,-254.85,0.00020775,2]
[366874942,1750535905537,-305.06,0.00020775,2]
[366874943,1750535905563,-245.35,0.00020775,2]
[366874944,1750535905588,-304.51,0.00020775,2]
[366874945,1750535905613,-245.27,0.00020775,2]
[366874946,1750535905639,-254.61,0.00020775,2]
[366874947,1750535905665,-302.51,0.00020775,2]
[366874948,1750535905691,-249.19,0.00020775,2]
[366874949,1750535905718,-249.39,0.00020775,2]
[366874950,1750535905742,-301.46,0.00020775,2]
[366874951,1750535905767,-251.21,0.00020775,2]
[366874952,1750535905793,-248.85,0.00020775,2]
[366874953,1750535905818,-301.62,0.00020775,2]
[366874954,1750535905846,-251.37,0.00020775,2]
[366874955,1750535905870,-250.65,0.00020775,2]
[366874956,1750535905896,-305.56,0.00020775,2]
[366874957,1750535905921,-247.67,0.00020775,2]
[366874958,1750535905946,-249.87,0.00020775,2]
[366874959,1750535905971,-251.24,0.00020775,2]
[366874960,1750535905996,-247.85,0.00020775,2]
[366874961,1750535906022,-303.65,0.00020775,2]
[366874962,1750535906047,-301.81,0.00020775,2]
[366874963,1750535906073,-304.48,0.00020776,2]
[366874964,1750535906099,-250.23,0.00020776,2]
[366874965,1750535906124,-246.92,0.00020776,2]
[366874966,1750535906151,-300.97,0.00020776,2]
[366874967,1750535906178,-250.46,0.00020776,2]
[366874968,1750535906204,-247.92,0.00020776,2]
[366874969,1750535906230,-301.09,0.00020776,2]
[366874970,1750535906256,-247.22,0.00020776,2]
[366874971,1750535906281,-253.24,0.00020776,2]
[366874972,1750535906305,-301.24,0.00020776,2]
[366874973,1750535906329,-247.2,0.00020776,2]
[366874974,1750535906354,-246.32,0.00020776,2]
[366874975,1750535906382,-159.22,0.00020776,2]
[366874976,1750535928077,202.17177053,0.000229,8]
[366874977,1750535928328,202.17177053,0.00023614,9]
[366874978,1750535928561,202.17177053,0.00024329,11]
[366874982,1750536087617,157.66,0.00024658,120]
[366874983,1750536091122,202.17177053,0.000229,8]
[366874984,1750536091375,202.17177053,0.0002415,10]
[366874985,1750536100541,157.65,0.00024658,120]
[366874990,1750536249398,202.17177053,0.000239,10]
[366874991,1750536311842,203.0,0.00023834,4]
[366874992,1750536406256,202.17177053,0.000229,8]
[366874997,1750536553324,200.0,0.00023321,7]
[366874998,1750536565315,202.17177053,0.000229,8]
[366875021,1750536632181,-173.14,0.00020615,2]
[366875022,1750536632192,-4525.221283,0.00020668,2]
[366875023,1750536632202,-253.22,0.00020773,2]
[366875024,1750536632212,-302.51,0.00020773,2]
[366875025,1750536632222,-245.82,0.00020776,2]
[366875027,1750536632232,-253.3,0.00020776,2]
[366875029,1750536632242,-304.73,0.00020776,2]
[366875031,1750536632251,-144.21,0.00020776,2]
[366875033,1750536632261,-246.11,0.00020776,2]
[366875034,1750536632271,-203.0,0.00022112,2]
[366875036,1750536632281,-200.0,0.00022112,2]
[366875039,1750536632291,-207.4,0.00023208,2]
[366875040,1750536632301,-1000.0,0.00023299,2]
[366875043,1750536632310,-666.0,0.00023319,2]
[366875044,1750536632320,-210.28,0.00023344,2]
[366875046,1750536632329,-1527.51904988,0.00023358,2]
[366875049,1750536632341,-259.99342664,0.00023358,2]
[366875052,1750536632369,-5524.78752348,0.00023358,2]
[366875055,1750536632379,-151.0,0.00023364,2]
[366875057,1750536632389,-4176.97481091,0.00023378,2]
[366875061,1750536632417,-421.98143468,0.00023378,2]
[366875063,1750536632429,-574.58917186,0.00023378,2]
[366875065,1750536632440,-479.63458255,0.00023378,2]
[366875067,1750536632450,-150.0,0.000234,2]
[366875069,1750536632459,-105.31149581,0.00023419,2]
[366875077,1750536632525,-78.44850419,0.00023419,2]
[366875079,1750536632535,-174.37973985,0.0002346,2]
[366875557,1750536637969,-20.39026015,0.0002346,2]
[366875558,1750536637979,-171.16,0.00023836,2]
[366875560,1750536637989,-420.15471803,0.00023847,2]
[366875563,1750536638001,-1028.15405918,0.00023847,2]
[366875565,1750536638013,-488.66430191,0.00023847,2]
[366875567,1750536638026,-1050.02692088,0.00023847,2]
[366875568,1750536638036,-246.98,0.00023965,2]
[366875569,1750536638046,-247.77,0.00023965,2]
[366875570,1750536638055,-157.68,0.00023973,2]
[366875571,1750536638068,-302.89,0.00023974,2]
[366875572,1750536638077,-166.6,0.00024024,2]
[366875573,1750536638087,-307.41,0.0002406,2]
[366875574,1750536638096,-379.14150887,0.00024096,2]
[366875577,1750536638107,-150.0,0.00024166,2]
[366875578,1750536638116,-166.75,0.00024256,2]
[366875580,1750536638126,-1161.0,0.000244,3]
[366875581,1750536638136,-518.0,0.000244,2]
[366875582,1750536638146,-150.0,0.00024429,2]
[366875583,1750536638155,-500.0,0.00024431,2]
[366875584,1750536638164,-177.75262476,0.00024454,2]
[366875585,1750536638174,-150.0,0.00024468,2]
[366875586,1750536638183,-23791.68,0.0002448,2]
[366875587,1750536638193,-1000.0,0.00024488,2]
[366875588,1750536638202,-1000.0,0.000245,3]
[366875589,1750536638212,-1000.0,0.000245,3]
[366875590,1750536638221,-800.0,0.000245,3]
[366875591,1750536638230,-1000.0,0.000245,3]
[366875592,1750536638240,-30000.0,0.000245,2]
[366875593,1750536638251,-992.0,0.000245,2]
[366875594,1750536638260,-461.73,0.00024521,2]
[366875595,1750536638269,-150.0,0.00024525,2]
[366875596,1750536638279,-4083.6807,0.00024533,2]
[366875597,1750536638288,-150.0,0.00024534,2]
[366875598,1750536638297,-816.93545856,0.00024536,2]
[366875599,1750536638327,-183.06454144,0.00024536,2]
[366875600,1750536638336,-268.63610468,0.00024549,2]
[366875601,1750536638345,-204.44743388,0.00024549,2]
[366875602,1750536638356,-4795.55256612,0.00024549,2]
[366875603,1750536638366,-1546.5347,0.00024549,2]
[366875604,1750536638375,-500.0,0.0002455,2]
[366875605,1750536638384,-500.0,0.0002455,2]
[366875606,1750536638394,-500.0,0.0002455,2]
[366875607,1750536638406,-500.0,0.0002455,2]
[366875608,1750536638417,-500.0,0.0002455,2]
[366875609,1750536638427,-500.0,0.0002455,2]
[366875610,1750536638437,-500.0,0.0002455,2]
[366875611,1750536638447,-500.0,0.0002455,2]
[366875612,1750536638456,-500.0,0.0002455,2]
[366875613,1750536638465,-500.0,0.0002455,2]
[366875614,1750536638475,-500.0,0.0002455,2]
[366875615,1750536638485,-500.0,0.0002455,2]
[366875616,1750536638494,-500.0,0.0002455,2]
[366875617,1750536638503,-500.0,0.0002455,2]
[366875618,1750536638512,-500.0,0.0002455,2]
[366875619,1750536638521,-500.0,0.0002455,2]
[366875620,1750536638531,-500.0,0.0002455,2]
[366875621,1750536638540,-500.0,0.0002455,2]
[366875622,1750536638549,-500.0,0.0002455,2]
[366875623,1750536638558,-500.0,0.0002455,2]
[366875624,1750536638567,-500.0,0.0002455,2]
[366875625,1750536638576,-500.0,0.0002455,2]
[366875626,1750536638586,-500.0,0.0002455,2]
[366875627,1750536638595,-500.0,0.0002455,2]
[366875628,1750536638604,-500.0,0.0002455,2]
[366875629,1750536638615,-500.0,0.0002455,2]
[366875630,1750536638624,-500.0,0.0002455,2]
[366875631,1750536638633,-500.0,0.0002455,2]
[366875632,1750536638643,-500.0,0.0002455,2]
[366875633,1750536638652,-553.0,0.0002455,2]
[366875634,1750536638662,-500.0,0.0002455,2]
[366875635,1750536638671,-500.0,0.0002455,2]
[366875636,1750536638681,-500.0,0.0002455,2]
[366875637,1750536638690,-500.0,0.0002455,2]
[366875638,1750536638699,-500.0,0.0002455,2]
[366875639,1750536638708,-500.0,0.0002455,2]
[366875640,1750536638718,-500.0,0.0002455,2]
[366875641,1750536638727,-500.0,0.0002455,2]
[366875642,1750536638737,-500.0,0.0002455,2]
[366875643,1750536638746,-500.0,0.0002455,2]
[366875644,1750536638756,-500.0,0.0002455,2]
[366875645,1750536638765,-500.0,0.0002455,2]
[366875646,1750536638775,-500.0,0.0002455,2]
[366875647,1750536638784,-500.0,0.0002455,2]
[366875648,1750536638794,-500.0,0.0002455,2]
[366875649,1750536638803,-500.0,0.0002455,2]
[366875650,1750536638813,-500.0,0.0002455,2]
[366875651,1750536638823,-500.0,0.0002455,2]
[366875652,1750536638832,-500.0,0.0002455,2]
[366875653,1750536638842,-500.0,0.0002455,2]
[366875654,1750536638851,-1453.5408986,0.0002455,2]
[366875655,1750536638861,-225.01348512,0.0002455,2]
[366875656,1750536638872,-158.21819683,0.0002455,2]
[366875657,1750536638881,-8012.93881072,0.0002455,2]
[366875658,1750536638891,-4531.21088326,0.0002455,2]
[366875659,1750536638901,-150.0,0.00024575,2]
[366875660,1750536638911,-215.0738,0.00024577,2]
[366875661,1750536638920,-150.0,0.00024578,2]
[366875662,1750536638930,-150.0,0.00024582,2]
[366875663,1750536638940,-1000.0,0.00024586,2]
[366875664,1750536638950,-173.07,0.0002459,2]
[366875665,1750536638959,-400.0,0.00024592,2]
[366875666,1750536638968,-1000.0,0.000246,2]
[366875667,1750536638978,-150.0,0.00024601,2]
[366875668,1750536638988,-150.0,0.00024611,2]
[366875669,1750536638998,-150.0,0.00024621,2]
[366875670,1750536639007,-150.0,0.00024621,2]
[366875671,1750536639018,-150.0,0.00024621,2]
[366875672,1750536639027,-201.22768234,0.00024621,2]
[366875673,1750536639036,-150.0,0.00024621,2]
[366875674,1750536639046,-150.0,0.00024621,2]
[366875675,1750536639056,-150.0,0.00024621,2]
[366875676,1750536639069,-150.0,0.00024621,2]
[366875677,1750536639078,-150.0,0.00024621,2]
[366875678,1750536639087,-150.0,0.00024621,2]
[366875679,1750536639098,-150.0,0.00024621,2]
[366875680,1750536639108,-150.0,0.00024621,2]
[366875681,1750536639121,-150.0,0.00024621,2]
[366875682,1750536639131,-150.0,0.00024621,2]
[366875683,1750536639140,-150.0,0.00024621,2]
[366875684,1750536639150,-150.0,0.00024621,2]
[366875685,1750536639159,-150.0,0.00024621,2]
[366875686,1750536639169,-500.0,0.00024621,2]
[366875687,1750536639180,-150.0,0.00024622,2]
[366875688,1750536639189,-150.0,0.00024634,2]
[366875689,1750536639199,-151.27,0.0002464,2]
[366875690,1750536639209,-151.27,0.0002464,2]
[366875691,1750536639218,-151.27,0.0002464,2]
[366875692,1750536639227,-151.27,0.0002464,2]
[366875693,1750536639236,-151.27,0.0002464,2]
[366875694,1750536639246,-151.27,0.0002464,2]
[366875695,1750536639256,-151.27,0.0002464,2]
[366875696,1750536639265,-151.27,0.0002464,2]
[366875697,1750536639275,-151.27,0.0002464,2]
[366875698,1750536639285,-1461.93206,0.0002464,2]
[366875699,1750536639294,-151.27,0.0002464,2]
[366875700,1750536639304,-151.27,0.0002464,2]
[366875701,1750536639314,-151.27,0.0002464,2]
[366875702,1750536639323,-151.27,0.0002464,2]
[366875703,1750536639333,-151.27,0.0002464,2]
[366875704,1750536639343,-482.63847053,0.00024641,2]
[366875705,1750536639352,-500.0,0.00024641,2]
[366875706,1750536639362,-500.0,0.00024641,2]
[366875707,1750536639373,-500.0,0.00024641,2]
[366875708,1750536639383,-500.0,0.00024641,2]
[366875709,1750536639392,-187.1083808,0.00024641,2]
[366875710,1750536639402,-500.0,0.00024641,2]
[366875711,1750536639412,-500.0,0.00024641,2]
[366875712,1750536639422,-500.0,0.00024641,2]
[366875713,1750536639431,-500.0,0.00024641,2]
[366875714,1750536639441,-500.0,0.00024641,2]
[366875715,1750536639451,-500.0,0.00024641,2]
[366875716,1750536639460,-500.0,0.00024641,2]